Cogmind - Beta 16 --- EXPLORER MODE // 2026.01.13 @ 16:45:29 Player: K.K.Y. Result: Destroyed by KM-GDX(R) with Subdweller Machine Gun Performance ------------- Evolutions (0) 0 Regions Visited (3) 600 Robots Destroyed (62) 310 Value Destroyed (1466) 1466 Prototype IDs (0) 0 Alien Tech Used (0) 0 Bonus (-76) -76 TOTAL SCORE: 2300 Bonus ------- Friendly Fire -76 Cogmind --------- Core Integrity 0/250 Matter 111/300 Energy 77/100 System Corruption 0% Temperature Cool (0) Movement Treading (260) Ox1 Location -10/Subcaves Parts ------- > --- POWER (1) -------- (None) > --- PROPULSION (2) --- Spiked Treads > --- UTILITY (3) ------ Improved Heat Sink Large Storage Unit Structural Scanner > --- WEAPON (2) ------- Makeshift Hammer > --- INVENTORY (15) --- Improved Heat Sink Makeshift Microdissipator Network High-capacity Storage Unit Humpback Sensor Array Improved Terrain Scanner Light Armor Plating Light Armor Plating Makeshift Hacking Suite Makeshift Hacking Suite Decoy Drone Bay Mining Laser Peak State ------------ > --- POWER ------------ Improved Ion Engine > --- PROPULSION ------- Improved Treads Spiked Treads > --- UTILITY ---------- Improved Heat Sink Large Storage Unit Structural Scanner > --- WEAPON ----------- Heavy Riot Gun Slug Cannon > --- INVENTORY -------- Spiked Treads Improved Heat Sink Makeshift Microdissipator Network High-capacity Storage Unit Sensor Array Improved Terrain Scanner Light Armor Plating Light Armor Plating Light Armor Plating Light Armor Plating Makeshift Hacking Suite Decoy Drone Bay Mining Laser Makeshift Hammer [Rating: 23] Favorites ----------- Power Ion Engine Engine Ion Engine Power Core Light Nuclear Core Propulsion Improved Treads Treads Improved Treads Utility Large Storage Unit Device Improved Heat Sink Storage Large Storage Unit Protection Light Armor Plating Weapon Beam Cannon Energy Gun Heavy Riot Gun Energy Cannon Beam Cannon Ballistic Cannon Slug Cannon Special Weapon Mining Laser Impact Weapon Makeshift Hammer Build | -11 -10 -10 -10 ------- Run | Yrd Mat Min Sub Slots Evolved 1 | . 1 . . Power . | . . . . Propulsion . | . . . . Utility 1 | . 1 . . Weapon . | . . . . Parts Attached 36 | 7 8 6 15 Power 5 | 1 . 1 3 Engine 4 | 1 . . 3 Core 1 | . . 1 . Reactor . | . . . . Propulsion 8 | 2 2 1 3 Treads 8 | 2 2 1 3 Leg . | . . . . Wheel . | . . . . Hover . | . . . . Flight . | . . . . Utility 12 | 2 2 4 4 Device 4 | . . 2 2 Storage 3 | 1 1 . 1 Processor . | . . . . Hackware . | . . . . Protection 5 | 1 1 2 1 Artifact . | . . . . Weapon 11 | 2 4 . 5 Energy Gun 4 | 2 . . 2 Energy Cannon 4 | . 3 . 1 Ballistic Gun . | . . . . Ballistic Cannon 1 | . . . 1 Launcher . | . . . . Special Weapon 1 | . 1 . . Impact Weapon 1 | . . . 1 Slashing Weapon . | . . . . Piercing Weapon . | . . . . Special Melee Weapon . | . . . . Unidentified Prototypes . | . . . . Parts Lost 7 | . . . 7 Power 2 | . . . 2 Propulsion 2 | . . . 2 Utility . | . . . . Weapon 3 | . . . 3 Highest Loss Streak 2 | . . . 2 To Critical Strikes . | . . . . Average Backups 12 | 1 8 13 13 Power . | . . . . Propulsion 1 | . 2 1 . Utility 9 | . 4 10 11 Weapon 1 | . 1 2 1 Tool/Special . | . . . . Unused Backups 12 | . 1 . 11 Power . | . . . . Propulsion 1 | . 1 . . Utility 10 | . . . 10 Weapon 1 | . . . 1 Tool/Special . | . . . . Average Slot Usage (%) 89 | . 87 100 87 Engine 7 | . 12 3 7 Core 2 | . . 8 . Treads 22 | . 24 25 20 Device 14 | . . 10 23 Storage 12 | . 12 12 12 Protection 6 | . 12 14 1 Energy Gun 3 | . 5 . 3 Energy Cannon 14 | . 18 25 8 Ballistic Cannon 3 | . . . 7 Peak Build Rating 23 | 7 11 17 23 Average Rating 15 | 5 9 15 18 On Entrance 8 | . 7 11 17 Avg Prop Armor Cover (%) 7 | . . 7 . Naked Turns . | . . . . Heaviest Build 40 | 22 37 37 40 Greatest Support 46 | 40 46 46 46 Greatest Overweight (x) 7 | . 7 1 1 Average Overweight (x) . | . . . . Largest Inventory Capacity 20 | 10 15 15 20 Average Capacity 14 | 8 12 15 15 Most Carried 15 | 5 15 15 15 Average Carried 13 | 1 8 14 14 Final Capacity 15 | 10 15 15 15 Final Carried 15 | 2 14 15 14 Class Distribution -------------------- 100% | Hacker-Mutant Dominant Class ---------------- Hacker-Mutant | -10/Materials Hacker-Mutant | -10/Mines Hacker-Mutant | -10/Subcaves Resources | -11 -10 -10 -10 ----------- Run | Yrd Mat Min Sub Matter Collected 1076 | 225 152 164 535 Remotely . | . . . . Salvage Created 1848 | 93 1023 217 515 Parts 124 | 7 60 13 44 Haulers Intercepted 2 | . 2 . . Recyclers Shooed . | . . . . Parts Field Recycled . | . . . . Retrieved Matter . | . . . . Parts Self-Destructed . | . . . . Prevented . | . . . . Parts Restored . | . . . . Kills | -11 -10 -10 -10 ------- Run | Yrd Mat Min Sub Combat Hostiles Destroyed 40 | . 15 7 18 Guns 5 | . 4 . 1 Cannons 32 | . 9 7 16 Classes Destroyed 13 | 2 6 . 5 Worker 2 | . 2 . . Builder 7 | . 7 . . Tunneler 1 | 1 . . . Hauler 2 | . 2 . . Recycler 3 | 1 2 . . Turret 2 | . . . 2 Watcher 3 | . 3 . . Swarmer 10 | . 4 3 3 Grunt 15 | . 11 4 . Sentry 2 | . . . 2 Artisan 2 | . . . 2 Subdweller 13 | . . . 13 Zionite 2 | . . . 2 Best Kill Streak 6 | 2 6 2 3 Combat Bots Only 4 | . 4 2 3 Max Kills in Single Turn 1 | 1 1 1 1 Gunslinging . | . . . . Exploded . | . . . . Melee . | . . . . Uniques/NPCs Destroyed . | . . . . Combat | -11 -10 -10 -10 -------- Run | Yrd Mat Min Sub Hostile Shots Fired 263 | . 45 34 184 Missed 80 | . 11 11 58 Hits 183 | . 34 23 126 Projectile 183 | . 34 23 126 AOE 1 | . . . 1 Critical Strikes 6 | . . 1 5 Damage Taken 1645 | . 239 165 1241 Core 254 | . 36 60 158 Absorbed by Shields . | . . . . Ignored by Resistances 1005 | . 156 90 759 Core Remaining (%) 100 | 100 . . . Volleys Fired 213 | 2 61 18 132 Largest 2 | 2 2 2 2 Hottest 160 | 100 160 120 160 Shots Fired 361 | 4 120 36 201 Gun 53 | 4 28 . 21 Cannon 301 | . 88 36 177 Launcher . | . . . . Special 7 | . 4 . 3 Kinetic 84 | . . . 84 Thermal 256 | 4 120 36 96 Explosive . | . . . . Electromagnetic 21 | . . . 21 Robot Hit Streak 41 | 3 29 9 41 Robot Miss Streak 3 | 1 2 1 3 Penetration Max . | . . . . Secondary Targets 1 | . 1 . . Max Gunslinging Chain 1 | . 1 . . Shots Hit Robots 254 | 3 83 25 143 Core Hits 80 | 3 33 9 35 Critical Kills 4 | . 2 . 2 Critical Parts Destroyed 1 | . . . 1 Critical Strikes 14 | . 4 . 10 Burn 2 | . 2 . . Meltdown 3 | . 2 . 1 Destroy 9 | . . . 9 Melee Attacks 3 | . . . 3 Impact 3 | . . . 3 Slashing . | . . . . Piercing . | . . . . Sneak Attacks . | . . . . Combat Hostiles . | . . . . Follow-up Attacks . | . . . . Damage Inflicted 4877 | 37 1345 433 3062 Guns 675 | 37 273 . 365 Cannons 4030 | . 1072 433 2525 Explosions . | . . . . Melee 148 | . . . 148 Ramming . | . . . . Kinetic 1437 | . . . 1437 Thermal 2927 | 37 1345 433 1112 Explosive . | . . . . Electromagnetic 365 | . . . 365 Impact 148 | . . . 148 Slashing . | . . . . Piercing . | . . . . Highest Corruption . | . . . . Average Corruption . | . . . . Corruption Purged . | . . . . Corruption Blocked . | . . . . Overload Shots . | . . . . Overflow Damage 109 | . . 15 94 Projectiles 62 | . . 15 47 Explosions . | . . . . Melee 47 | . . . 47 Knockbacks 12 | . . . 12 Impact . | . . . . Kinetic 12 | . . . 12 Secondary . | . . . . Self-Inflicted Damage . | . . . . Shots . | . . . . Rammed . | . . . . Targets Rammed . | . . . . Kicked . | . . . . Crushed . | . . . . Highest Temperature 582 | 48 429 582 9 Average Temperature 128 | 24 118 195 4 Received Heat Transfer 798 | . 195 99 504 Effects 13 | . 6 7 . Shutdowns 4 | . 2 2 . Energy Bleed 1 | . 1 . . Interference 4 | . 2 2 . Matter Decay 2 | . 1 1 . Short Circuit 1 | . . 1 . Damage (core) 1 | . . 1 . Siege Activations . | . . . . Martial Activations . | . . . . Shielding Activations . | . . . . Robots Disrupted . | . . . . Combat Hostiles . | . . . . Robots Corrupted . | . . . . Combat Hostiles . | . . . . Parts Fried . | . . . . Impact Corruptions 1 | . . . 1 Robots Melted 4 | . 3 . 1 Combat Hostiles 3 | . 2 . 1 Parts Melted 15 | 2 11 . 2 Heat Transferred 6587 | 111 3219 925 2332 Parts Sabotaged . | . . . . Parts Stolen . | . . . . Parts Stripped . | . . . . Power Chain Reactions . | . . . . Alert | -11 -10 -10 -10 ------- Run | Yrd Mat Min Sub Maximum Alert Level . | . . . . Low Security (%) 100 | 100 100 100 . Level 1 . | . . . . Level 2 . | . . . . Level 3 . | . . . . Level 4 . | . . . . Level 5 . | . . . . High Security . | . . . . Max Security . | . . . . Peak Influence 75 | 5 75 54 . Initial . | . . . . Average 6 | 2 8 3 . Influence Increases 886 | 10 457 174 245 Destroy 0b10 Robot/C 580 | . 300 140 140 Destroy 0b10 Robot/NC 90 | 10 80 . . Destroy Leader 90 | . 60 30 . Successful Hack 8 | . 8 . . Disable Machine 8 | . 4 4 . Destroy Structure 5 | . 5 . . Lose Combat Pursuer 105 | . . . 105 Influence Decreases 886 | 10 457 174 245 Time Decay 866 | 10 457 174 225 Lost Part 20 | . . . 20 Squads Dispatched 1 | . 1 . . Investigation 1 | . 1 . . Extermination . | . . . . Reinforcement . | . . . . Assault . | . . . . Garrison . | . . . . Intercept . | . . . . Searches Triggered . | . . . . Construction Impeded . | . . . . Haulers Reinforced . | . . . . Active Scanning Responses . | . . . . Cargo Convoy Interrupts . | . . . . Stealth | -11 -10 -10 -10 --------- Run | Yrd Mat Min Sub Distress Signals 1 | . 1 . . Communications Jammed . | . . . . Distress Signals . | . . . . Times Spotted 57 | . 22 8 27 Peak Tracking Total 6 | . 3 2 6 Tactical Retreats 5 | . . . 5 Traps | -11 -10 -10 -10 ------- Run | Yrd Mat Min Sub Traps Triggered 1 | . . . 1 Indirectly . | . . . . Trap Hack Attempts . | . . . . Triggered . | . . . . Disarmed . | . . . . Reprogrammed . | . . . . Reused . | . . . . Traps Extracted . | . . . . Installed . | . . . . Triggered . | . . . . Machines | -11 -10 -10 -10 ---------- Run | Yrd Mat Min Sub Machines Disabled 4 | . 1 1 2 Max in Single Turn 1 | . 1 1 1 Machines Repaired . | . . . . Machines Dismantled . | . . . . Machines Sabotaged . | . . . . Overloaded Fab Kills . | . . . . Hacking | -11 -10 -10 -10 --------- Run | Yrd Mat Min Sub Machines Accessed 3 | . 2 1 . Terminals 2 | . 2 . . Fabricators . | . . . . Repair Stations . | . . . . Recycling Units . | . . . . Scanalyzers . | . . . . Garrison Access . | . . . . Total Hacks 6 | . 5 1 . Successful 4 | . 3 1 . Failed 2 | . 2 . . Catastrophic . | . . . . Database Lockouts . | . . . . Manual 3 | . 3 . . Terminals 5 | . 5 . . Fabricators . | . . . . Repair Stations . | . . . . Recycling Units . | . . . . Scanalyzers . | . . . . Garrison Access . | . . . . Terminal Hacks 2 | . 1 1 . Robot Analysis 1 | . 1 . . Open Door 1 | . . 1 . Fabricator Hacks . | . . . . Repair Station Hacks . | . . . . Recycling Unit Hacks . | . . . . Scanalyzer . | . . . . Garrison Access Hacks . | . . . . Unauthorized Hacks 2 | . 2 . . Terminals 2 | . 2 . . Botnet 2 | . 2 . . Fabricators . | . . . . Repair Stations . | . . . . Recycling Units . | . . . . Scanalyzers . | . . . . Garrison Access . | . . . . Data Cores Recovered . | . . . . Used . | . . . . Hacking Detections 2 | . 2 . . Full Trace Events 1 | . 1 . . Feedback Events . | . . . . Feedback Blocked . | . . . . Robot Schematics Acquired . | . . . . Robots Built . | . . . . Authchips . | . . . . Time . | . . . . Total Robot Build Rating . | . . . . Part Schematics Acquired . | . . . . Parts Built . | . . . . Authchips . | . . . . Time . | . . . . Total Part Build Rating . | . . . . Part Studies Acquired . | . . . . Parts Repaired . | . . . . Time . | . . . . Parts Recycled . | . . . . Recycled Matter . | . . . . Retrieved Matter . | . . . . Retrieved Components . | . . . . Parts Scanalyzed . | . . . . Part Schematics Acquired . | . . . . Parts Damaged . | . . . . Bothacking | -11 -10 -10 -10 ------------ Run | Yrd Mat Min Sub Used RIF Installer . | . . . . Robots Hacked . | . . . . Non-combat . | . . . . Combat . | . . . . Robot Hacks Applied . | . . . . Relay Couplers Released . | . . . . Fabnet Peak Effective % . | . . . . Robots Rewired . | . . . . Allies Hacked . | . . . . Hacks Repelled . | . . . . Allies | -11 -10 -10 -10 -------- Run | Yrd Mat Min Sub Total Allies . | . . . . Largest Group . | . . . . Highest-Rated Group . | . . . . Highest-Rated Ally . | . . . . Total Orders . | . . . . Ally Attacks . | . . . . Total Damage . | . . . . Kills . | . . . . Allies Corrupted . | . . . . Allies Melted . | . . . . Intel | -11 -10 -10 -10 ------- Run | Yrd Mat Min Sub Active Infowar (turns) 3340 | . . . 3340 Sensors 6 | . . . 6 Structural 3334 | . . . 3334 Robot Analysis Total 1 | . 1 . . Derelict Logs Recovered 1 | . . 1 . Drone Launches . | . . . . Drone Recoveries . | . . . . Exploration | -11 -10 -10 -10 ------------- Run | Yrd Mat Min Sub Turns Passed 6975 | 67 1863 1326 3719 Spaces Moved 3237 | 35 929 736 1537 Core 16 | 12 4 . . Treads 3221 | 23 925 736 1537 Legs . | . . . . Wheels . | . . . . Hover . | . . . . Flight . | . . . . Fastest Speed 50 | 50 160 160 160 Average Speed 168 | 122 161 160 178 Slowest Speed 400 | 160 400 240 260 Overloaded Moves . | . . . . Propulsion Burnouts . | . . . . Robots Hopped . | . . . . Potential Cave-ins . | . . . . Cave-ins Triggered . | . . . . Exploration Rate (%) 68 | 3 99 99 71 Regions Visited 3 Branch Regions 2 Pre-discovered Areas 2 | . . 1 1 Known Exits Taken 3 | 1 1 1 . Unknown Exits Taken . | . . . . Scrap Searched 19 | . . 3 16 Spaces Dug 6 | . 3 . 3 Terrain Destroyed 15 | . 3 . 12 Melee . | . . . . Projectile 15 | . 3 . 12 AOE . | . . . . Terrain Rammed . | . . . . Walls Destroyed . | . . . . Machines Disabled . | . . . . Actions | -11 -10 -10 -10 --------- Run | Yrd Mat Min Sub Total 4371 | 55 1170 845 2301 Wait 808 | 3 140 78 587 Move 3234 | 34 928 735 1537 Hop . | . . . . Pick Up 38 | 9 19 3 7 Fast Attach 4 | . . . 4 Attach 14 | 7 5 1 1 Detach 4 | . 4 . . Swap 32 | . 7 5 20 Drop 21 | . 6 5 10 Fire 213 | 2 61 18 132 Melee 3 | . . . 3 Ram . | . . . . Kick . | . . . . Crush . | . . . . Escape Stasis . | . . . . Rewire . | . . . . Trap . | . . . . Miscellaneous . | . . . . Route ------- -11/Scrapyard -10/Materials (discovered 6 exits: *Mat x3 / *Min x2 / *Sub) -10/Mines (discovered 3 exits: *Mat x2 / *Sub) -10/Subcaves (discovered 2 exits: *Mat / *Rec) History --------- Turn | Location | Event 5 | -11/Scrapyard | Identified exit to Materials 5 | -11/Scrapyard | Discovered exit to Materials (range 15) 68 | -11/Scrapyard | Entered Materials 68 | -10/Materials | Evolved 1 slot: Utility x1 255 | -10/Materials | Identified exit to Mines 255 | -10/Materials | Discovered exit to Mines (range 16) 280 | -10/Materials | Identified exit to Materials 280 | -10/Materials | Discovered exit to Materials (range 13) 326 | -10/Materials | Build established: Hacker-Mutant 566 | -10/Materials | Discovered exit to Materials (range 15) 714 | -10/Materials | Identified exit to Subcaves 714 | -10/Materials | Discovered exit to Subcaves (range 8) 990 | -10/Materials | Discovered exit to Mines (range 4) 1069 | -10/Materials | Discovered exit to Materials (range 14) 1931 | -10/Materials | Entered Mines 1984 | -10/Mines | Found the Drone Emporium 1993 | -10/Mines | Found Prototype Device 2078 | -10/Mines | Discovered exit to Materials (range 15) 2088 | -10/Mines | Discovered exit to Materials (range 12) 2410 | -10/Mines | Learned 4 Materials zone layouts 2446 | -10/Mines | Received a Rocket Launcher from a helpful Derelict 2993 | -10/Mines | Learned location of Storage (-9) 3249 | -10/Mines | Discovered exit to Subcaves (range 6) 3257 | -10/Mines | Entered Subcaves 3258 | -10/Subcaves | Approached by a straggling Scientist 3336 | -10/Subcaves | Learned location of Zion (-7) 3336 | -10/Subcaves | Met a Zionite searching for "candidates" 3389 | -10/Subcaves | Identified exit to Materials 3389 | -10/Subcaves | Discovered exit to Materials (range 11) 3495 | -10/Subcaves | Disturbed a concealed Subdweller 3907 | -10/Subcaves | Core integrity fell below 50% 4148 | -10/Subcaves | Shifting Twisted Machinery released Sub. Power Source 4154 | -10/Subcaves | Shifting Twisted Machinery released Spk. Treads 4211 | -10/Subcaves | Identified exit to Recycling 4211 | -10/Subcaves | Discovered exit to Recycling (range 16) 5003 | -10/Subcaves | A swath of the cavern ceiling suddenly collapsed 5621 | -10/Subcaves | Ambushed by angry Subdweller bent on revenge 5725 | -10/Subcaves | Shifting Twisted Machinery released Sub. Power Source 5725 | -10/Subcaves | Shifting Twisted Machinery released Sub. Shrapnel Launcher 5780 | -10/Subcaves | Core integrity fell below 20% 5934 | -10/Subcaves | A swath of the cavern ceiling suddenly collapsed 6963 | -10/Subcaves | Ambushed by Subdweller buried in earth 6976 | -10/Subcaves | Destroyed by KM-GDX(R) with Subdweller Machine Gun Last Messages --------------- 05940_ Acquired 53 matter. 05950_ Y-45 Defender suffers critical hit (Destroy). 05957_ Critical hit (Burn: +37). 05958_ Y-45 Defender destroyed. 05970_ Acquired 6 matter. 05978_ Acquired 12 matter. 06139_ G3-BFJ(u) tweaks Twisted Machinery. 06497_ Acquired 2 matter. 06813_ Slug penetrates G3-BFJ(u). 06815_ Destroyed Multitool. 06815_ G3-BFJ(u) cries out in pain. 06815_ G3-BFJ(u) destroyed. 06848_ Acquired 9 matter. 06959_ Slug penetrates Earth. 06964_ KM-GDX(R): "THANKSYOU!" 06965_ Slug Cannon destroyed. 06975_ Destroyed Disposable Heat Sink. 06975_ KM-GDX(R) system corrupted by crushing effect. Map ----- +----------------------------------------------------+ | ?????????????????????????????????????????????????? | | ?????????????????????????????????????????????????? | | ?????????????????????????????????????????????????? | | ?????????????????????????????????????????????????? | | ?????????????????????????????????????????????????? | | ?????????????????????????????????????????????????? | | ?????????????????????????????????????????????????? | | ?????????????????????????????????????????????????? | | ?????????????????????????????????????????????????? | | ?????????????????????????????????????????????????? | | ?????????????????????????????????????????????????? | | ?????????????????????????????????????????????????? | | ?????????????????????????????????????????????????? | | ?????????????????????????????????????????????????? | | ?????????????????????????????????????????????????? | | ?????????????????????????????????????????????????? | | ?????????????????????????????????????????????????? | | ?????????????????????????????????????????????????? | | ?????????????????????????????????????????????????? | | ?????????????????????????????????????????????????? | | ?????????????????????????????????????????????????? | | #######????????????#########?????????????????????? | | ########???????????############## #??????????????? | | " "#####?????????## ## ;###### ##??????????????? | | """ "#####????????### R% ###??????????????? | | """" ####???????### @#### ###???????????????? | | "" ####???????## ####### ##???????????????? | | " ####??????## ###?????????????????????? | | # ####?????## ###??????????????????????? | | ##"# ###?###### ##??????????????????????? | | #### ##?###### ###?????????????????????? | | #### ##?## ### ####????????????????????? | | ??## ###?## ### ####???## ?????????????? | | ??## ####?## ### ####?? # ?????????????? | | #### ### ###??## " ## #### ## ????????????? | | #### #### ##??###"# ## ### # # #?????????? | | # ### ##???##"#" %& ## ##?????????? | | # "#" #"##"# &&& ###????????? | | ############"####""" ! =# # ##????????? | | ########"######"""#" &##### #????????? | | ###??????#####"""###" #### ??????????? | | ####??????### ####"##"" ## ??????????? | | ###?????####"#"##""#"## # # ##?? ???????????? | | ####?#######""#""#""### #### ###???###????????? | | #########"# #""#"#"## ### ###??? ##????????? | | #####"""#"#""##""## ##### ### ? ##????????? | | ####""""####""#"## ##### ### ##????????? | | "## #################### # # ####??????? | | ### "##############% %## ######?????? | | #### ###?????????##" # "" ## ###?????? | +----------------------------------------------------+ Best States ------------- Heat Dissipation 39 Energy Generation 15 Energy Capacity 265 Matter Stores 300 Matter Capacity 300 Sight Range 16 Robot Scan Range 14 Terrain Scan Density 10 Armor Coverage 300 Resistance: KI 35 Resistance: TH 35 Resistance: EX 35 Resistance: EM 35 Resistance: I 35 Resistance: S 35 Resistance: P 35 Evasion (%) 50 Recoil Reduction 2 Offensive Hacking 20 Item Schematics ----------------- None Robot Schematics ------------------ None Fabricated ------------ Nothing Repaired ---------- Nothing Studied --------- None Alien Tech Used ----------------- None Achievements -------------- None Challenges ------------ None Game ------ Seed SmartbombPlexusPlating Manual? 0 Play Time 00:31:06 Cumulative 278.3 hours Start 2026.01.13 @ 15:36:51 End 2026.01.13 @ 16:45:29 Sessions 1 Manual Loads 0 Difficulty Explorer Special Mode None Game No. 435 Rogue 0 Adventurer 0 Explorer 435 Win Type - Total 0 Types 0/0/0/0/0/0/0/0/0/0 Lore% 74 Gallery% 69 Achievement% 55 Wizard Run 0 Options --------- Layout 1 ASCII 0 Keyboard 0 Movement Mouse Keybinds 1 Fullscreen 1 Font 24/Smallcaps Map View 50x35 Zoom Use 0% Tactical HUD 1 Map Filters NONE Filters NONE Steam 1 RUN: 01d7fa46-0445-4c96-a5c1-90035d4504c2